fUSD/lending_fUSD_20250201
["ID","MTS","AMOUNT","RATE_DAILY","PERIOD"]
[351204106,1738416639914,-150.0,0.00017132,2]
[351204107,1738416639924,-150.0,0.00017134,2]
[351204108,1738416639935,-500.0,0.00017136,2]
[351204109,1738416639944,-500.0,0.00017136,2]
[351204110,1738416639953,-957.80778976,0.00017136,2]
[351204111,1738416639970,-485.33221024,0.00017136,2]
[351204112,1738416639980,-500.0,0.00017136,2]
[351204113,1738416639990,-468.19095854,0.00017136,2]
[351204114,1738416639999,-500.0,0.00017136,2]
[351204115,1738416640008,-500.0,0.00017136,2]
[351204116,1738416640017,-27.2216094,0.00017136,2]
[351204117,1738416640028,-472.7783906,0.00017136,2]
[351204118,1738416640038,-394.73306992,0.00017136,2]
[351204119,1738416640202,-105.26693008,0.00017136,2]
[351204120,1738416640212,-500.0,0.00017136,2]
[351204121,1738416640221,-48.75066625,0.00017141,2]
[351204122,1738416640264,-101.24933375,0.00017141,2]
[351204123,1738416640274,-1143.83232704,0.00017149,2]
[351204124,1738416640284,-1782.7066,0.00017173,2]
[351204125,1738416640293,-4079.4906,0.00017199,2]
[351204126,1738416640303,-586.1234,0.00017199,2]
[351204127,1738416640312,-1237.25171459,0.00017199,2]
[351204128,1738416640321,-162.8441339,0.000172,2]
[351204129,1738416640331,-185.828514,0.0001721,2]
[351204130,1738416640340,-931.67940478,0.00017212,2]
[351204131,1738416640349,-150.0,0.00017216,2]
[351204132,1738416640359,-150.0,0.00017218,2]
[351204133,1738416640369,-156.62178233,0.00017219,2]
[351204134,1738416640378,-150.0,0.00017221,2]
[351204135,1738416640388,-1237.25171459,0.00017221,2]
[351204136,1738416640397,-150.0,0.00017225,2]
[351204137,1738416640406,-150.0,0.00017237,2]
[351204138,1738416640417,-150.0,0.00017239,2]
[351204139,1738416640426,-748.3447088,0.00017244,2]
[351204140,1738416640437,-488.90700579,0.00017244,2]
[351204141,1738416640446,-160.9420075,0.00017246,2]
[351204142,1738416640457,-544.34473846,0.00017246,2]
[351204153,1738416644016,-637.0,0.00016957,2]
[351204154,1738416644029,-294.71325404,0.00017246,2]
[351204155,1738416644041,-156.62178232,0.00017264,2]
[351204156,1738416644052,-1237.25171459,0.00017266,2]
[351204157,1738416644064,-150.0,0.00017271,2]
[351204158,1738416644079,-643.96435263,0.00017273,2]
[351204159,1738416644091,-500.0,0.00017273,2]
[351204160,1738416644104,-1443.14,0.00017273,2]
[351204161,1738416644116,-500.0,0.00017273,2]
[351204162,1738416644127,-500.0,0.00017273,2]
[351204163,1738416644138,-500.0,0.00017273,2]
[351204165,1738416644149,-500.0,0.00017273,2]
[351204166,1738416644161,-500.0,0.00017273,2]
[351204167,1738416644172,-500.0,0.00017273,2]
[351204168,1738416644184,-150.0,0.00017275,2]
[351204169,1738416644196,-1237.25171459,0.00017288,2]
[351204170,1738416644208,-150.0,0.00017291,2]
[351204171,1738416644220,-1000.0,0.00017297,2]
[351204172,1738416644231,-185.15466488,0.00017299,2]
[351204173,1738416644244,-500.0,0.00017299,2]
[351204175,1738416644256,-387.72402143,0.00017299,2]
[351204177,1738416644268,-500.0,0.00017299,2]
[351204179,1738416644280,-500.0,0.00017299,2]
[351204181,1738416644291,-593.32777739,0.00017299,2]
[351204183,1738416644302,-500.0,0.00017299,2]
[351204186,1738416644314,-500.0,0.00017299,2]
[351204187,1738416644324,-500.0,0.00017299,2]
[351204188,1738416644334,-500.0,0.00017299,2]
[351204189,1738416644344,-534.92840281,0.00017299,2]
[351204190,1738416644354,-500.0,0.00017299,2]
[351204191,1738416644365,-500.0,0.00017299,2]
[351204192,1738416644377,-500.0,0.00017299,2]
[351204193,1738416644390,-500.0,0.00017299,2]
[351204194,1738416644401,-500.0,0.00017299,2]
[351204195,1738416644411,-500.0,0.00017299,2]
[351204196,1738416644421,-500.0,0.00017299,2]
[351204197,1738416644432,-500.0,0.00017299,2]
[351204198,1738416644442,-500.0,0.00017299,2]
[351204199,1738416644454,-151.52262,0.00017299,2]
[351204200,1738416644465,-154.189995,0.00017299,2]
[351204201,1738416644476,-500.0,0.00017299,2]
[351204202,1738416644487,-500.0,0.00017299,2]
[351204203,1738416644497,-500.0,0.00017299,2]
[351204204,1738416644507,-500.0,0.00017299,2]
[351204205,1738416644517,-500.0,0.00017299,2]
[351204206,1738416644528,-500.0,0.00017299,2]
[351204207,1738416644539,-500.0,0.00017299,2]
[351204208,1738416644551,-500.0,0.00017299,2]
[351204209,1738416644564,-500.0,0.00017299,2]
[351204210,1738416644575,-500.0,0.00017299,2]
[351204211,1738416644586,-500.0,0.00017299,2]
[351204212,1738416644596,-500.0,0.00017299,2]
[351204213,1738416644610,-500.0,0.00017299,2]
[351204214,1738416644621,-500.0,0.00017299,2]
[351204215,1738416644632,-500.0,0.00017299,2]
[351204216,1738416644643,-500.0,0.00017299,2]
[351204217,1738416644654,-449.5,0.00017299,2]
[351204218,1738416644665,-500.0,0.00017299,2]
[351204219,1738416644675,-500.0,0.00017299,2]
[351204220,1738416644686,-500.0,0.00017299,2]
[351204221,1738416644697,-500.0,0.00017299,2]
[351204222,1738416644708,-500.0,0.00017299,2]
[351204223,1738416644718,-500.0,0.00017299,2]
[351204224,1738416644729,-500.0,0.00017299,2]
[351204225,1738416644739,-500.0,0.00017299,2]
[351204226,1738416644750,-500.0,0.00017299,2]
[351204227,1738416644761,-518.97497456,0.00017299,2]
[351204228,1738416644772,-500.0,0.00017299,2]
[351204229,1738416644783,-616.91488143,0.00017299,2]
[351204230,1738416644793,-500.0,0.00017299,2]
[351204231,1738416644804,-500.0,0.00017299,2]
[351204232,1738416644814,-500.0,0.00017299,2]
[351204233,1738416644824,-500.0,0.00017299,2]
[351204234,1738416644835,-500.0,0.00017299,2]
[351204235,1738416644845,-500.0,0.00017299,2]
[351204236,1738416644856,-500.0,0.00017299,2]
[351204237,1738416644866,-500.0,0.00017299,2]
[351204238,1738416644876,-500.0,0.00017299,2]
[351204239,1738416644887,-500.0,0.00017299,2]
[351204240,1738416644898,-500.0,0.00017299,2]
[351204241,1738416644910,-500.0,0.00017299,2]
[351204242,1738416644921,-500.0,0.00017299,2]
[351204243,1738416644933,-500.0,0.00017299,2]
[351204244,1738416644944,-500.0,0.00017299,2]
[351204245,1738416644955,-500.0,0.00017299,2]
[351204246,1738416644966,-500.0,0.00017299,2]
[351204247,1738416644976,-500.0,0.00017299,2]
[351204248,1738416644987,-500.0,0.00017299,2]
[351204249,1738416644998,-500.0,0.00017299,2]
[351204250,1738416645009,-500.0,0.00017299,2]
[351204251,1738416645020,-500.0,0.00017299,2]
[351204252,1738416645032,-500.0,0.00017299,2]
[351204253,1738416645043,-500.0,0.00017299,2]
[351204254,1738416645056,-500.0,0.00017299,2]
[351204255,1738416645067,-500.0,0.00017299,2]
[351204256,1738416645077,-500.0,0.00017299,2]
[351204257,1738416645089,-500.0,0.00017299,2]
[351204258,1738416645100,-500.0,0.00017299,2]
[351204259,1738416645111,-500.0,0.00017299,2]
[351204260,1738416645122,-500.0,0.00017299,2]
[351204261,1738416645133,-1228.18,0.00017299,2]
[351204262,1738416645144,-500.0,0.00017299,2]
[351204263,1738416645154,-547.04166192,0.00017299,2]
[351204264,1738416645164,-500.0,0.00017299,2]
[351204265,1738416645175,-611.75,0.00017299,2]
[351204266,1738416645186,-999.33,0.00017299,2]
[351204267,1738416645197,-500.0,0.00017299,2]
[351204268,1738416645207,-500.0,0.00017299,2]
[351204269,1738416645217,-656.29,0.00017299,2]
[351204270,1738416645227,-500.0,0.00017299,2]
[351204271,1738416645238,-500.0,0.00017299,2]
[351204272,1738416645249,-500.0,0.00017299,2]
[351204273,1738416645259,-1077.21,0.00017299,2]
[351204274,1738416645269,-501.5,0.00017299,2]
[351204275,1738416645279,-500.0,0.00017299,2]
[351204276,1738416645290,-500.0,0.00017299,2]
[351204277,1738416645301,-500.0,0.00017299,2]
[351204278,1738416645311,-500.0,0.00017299,2]
[351204279,1738416645322,-873.22,0.00017299,2]
[351204280,1738416645335,-631.18,0.00017299,2]
[351204281,1738416645346,-500.0,0.00017299,2]
[351204282,1738416645356,-818.3,0.00017299,2]
[351204283,1738416645367,-500.0,0.00017299,2]
[351204284,1738416645378,-500.0,0.00017299,2]
[351204285,1738416645388,-500.0,0.00017299,2]
[351204286,1738416645398,-500.0,0.00017299,2]
[351204287,1738416645409,-752.75,0.00017299,2]
[351204288,1738416645419,-982.76,0.00017299,2]
[351204289,1738416645430,-500.0,0.00017299,2]
[351204290,1738416645440,-844.5,0.00017299,2]
[351204291,1738416645451,-500.0,0.00017299,2]
[351204292,1738416645462,-500.0,0.00017299,2]
[351204293,1738416645472,-500.0,0.00017299,2]
[351204294,1738416645483,-519.13,0.00017299,2]
[351204295,1738416645493,-500.0,0.00017299,2]
[351204296,1738416645504,-1165.1,0.00017299,2]
[351204297,1738416645515,-500.0,0.00017299,2]
[351204298,1738416645525,-500.0,0.00017299,2]
[351204299,1738416645536,-500.0,0.00017299,2]
[351204300,1738416645547,-500.0,0.00017299,2]
[351204301,1738416645557,-1094.47,0.00017299,2]
[351204302,1738416645568,-500.22,0.00017299,2]
[351204303,1738416645579,-500.0,0.00017299,2]
[351204304,1738416645590,-588.01,0.00017299,2]
[351204305,1738416645600,-500.0,0.00017299,2]
[351204306,1738416645612,-952.35,0.00017299,2]
[351204308,1738416645620,-500.0,0.00017299,2]
[351204310,1738416645629,-620.45,0.00017299,2]
[351204312,1738416645639,-521.7,0.00017299,2]
[351204313,1738416645647,-500.0,0.00017299,2]
[351204315,1738416645656,-830.32,0.00017299,2]
[351204317,1738416645665,-605.69,0.00017299,2]
[351204319,1738416645675,-500.0,0.00017299,2]
[351204321,1738416645685,-618.72,0.00017299,2]
[351204323,1738416645694,-561.78,0.00017299,2]
[351204325,1738416645703,-732.73,0.00017299,2]
[351204327,1738416645712,-500.0,0.00017299,2]
[351204329,1738416645721,-500.0,0.00017299,2]
[351204339,1738416645975,-971.67,0.00017299,2]
[351204340,1738416645987,-1172.191264,0.00017299,2]
[351204341,1738416646182,-2300.218736,0.00017299,2]
[351204342,1738416646191,-500.0,0.00017299,2]
[351204343,1738416646201,-596.31,0.00017299,2]
[351204344,1738416646210,-500.0,0.00017299,2]
[351204345,1738416646220,-508.27,0.00017299,2]
[351204346,1738416646229,-612.55,0.00017299,2]
[351204347,1738416646238,-547.63636659,0.00017299,2]
[351204348,1738416646247,-619.95,0.00017299,2]
[351204349,1738416646256,-500.0,0.00017299,2]
[351204350,1738416646265,-938.84,0.00017299,2]
[351204351,1738416646274,-500.0,0.00017299,2]
[351204352,1738416646283,-569.13,0.00017299,2]
[351204353,1738416646292,-336.78074163,0.00017299,2]
[351204354,1738416646318,-568.0,0.00016957,2]
[351204355,1738416646327,-496.90925837,0.00017299,2]
[351204356,1738416646336,-1003.87,0.00017299,2]
[351204357,1738416646345,-500.0,0.00017299,2]
[351204358,1738416646354,-639.79346419,0.00017299,2]
[351204359,1738416646365,-468.11653581,0.00017299,2]
[351204360,1738416646374,-858.56639079,0.00017299,2]
[351204363,1738416779997,9984.99000008,0.00023,120]
[351204364,1738416912896,160.96,0.00010137,2]
[351204369,1738417832055,-541.75,0.00013,2]
[351204370,1738417836842,-8.25,0.00013,2]
[351204371,1738417836852,-420.652964,0.00014269,2]
[351204372,1738417836895,-169.967036,0.00014269,2]
[351204373,1738417836904,-150.0,0.000143,2]
[351204374,1738417836914,-600.0,0.00015,2]
[351204375,1738417836924,-1000.0,0.00016175,2]
[351204376,1738417836933,-167.65,0.00016176,2]
[351204377,1738417836943,-269.34599098,0.00016197,2]
[351204378,1738417837014,-328.80245351,0.00016197,2]
[351204385,1738417837988,-966.11599624,0.00016197,2]
[351204386,1738417838049,-5168.42555927,0.00016197,2]
[351204387,1738417838059,-156.79,0.00016293,2]
[351204388,1738417838068,-150.43677657,0.00016438,2]
[351204389,1738417838078,-590.62,0.00016533,2]
[351204390,1738417838087,-1000.0,0.00016712,7]
[351204391,1738417838097,-637.0,0.00016851,2]
[351204392,1738417838107,-900.0,0.00016922,2]
[351204393,1738417838116,-1000.0,0.00016986,7]
[351204394,1738417838126,-438.4,0.00016986,2]
[351204395,1738417838136,-150.0,0.00016986,2]
[351204396,1738417838146,-150.0,0.00016986,2]
[351204397,1738417838155,-150.0,0.00016986,2]
[351204398,1738417838165,-298.46,0.00016986,2]
[351204399,1738417838175,-1745.64,0.00016986,2]
[351204400,1738417838184,-150.31,0.00016986,2]
[351204401,1738417838194,-150.0,0.00016986,2]
[351204402,1738417838203,-298.46,0.00016986,2]
[351204403,1738417838213,-150.0,0.00016986,2]
[351204404,1738417838222,-150.0,0.00016986,2]
[351204405,1738417838232,-438.4,0.00016986,2]
[351204406,1738417838242,-150.0,0.00016986,2]
[351204407,1738417838251,-150.0,0.00016986,2]
[351204408,1738417838261,-298.01,0.00016986,2]
[351204409,1738417838271,-150.0,0.00016986,2]
[351204410,1738417838280,-150.0,0.00016986,2]
[351204411,1738417838290,-438.01,0.00016986,2]
[351204412,1738417838301,-150.0,0.00016986,2]
[351204413,1738417838311,-150.0,0.00016986,2]
[351204414,1738417838321,-650.0,0.00017,2]
[351204415,1738417838330,-150.0,0.00017053,2]
[351204416,1738417838340,-150.0,0.00017061,2]
[351204417,1738417838351,-150.0,0.00017069,2]
[351204418,1738417838360,-1004.0,0.000171,2]
[351204419,1738417838370,-263.3885124,0.00017162,2]
[351204420,1738417838380,-1750.8681973,0.00017162,2]
[351204421,1738417838390,-150.0,0.00017181,2]
[351204422,1738417838399,-150.0,0.00017182,2]
[351204423,1738417838408,-150.0,0.00017195,2]
[351204424,1738417838418,-866.07620024,0.00017198,2]
[351204425,1738417838428,-543.25605328,0.00017198,2]
[351204426,1738417838438,-150.0,0.00017199,2]
[351204427,1738417838448,-5000.0,0.00017199,2]
[351204428,1738417838457,-2095.845,0.000172,2]
[351204429,1738417838467,-229.34890675,0.000172,2]
[351204430,1738417838477,-150.0,0.00017203,2]
[351204431,1738417838486,-150.0,0.00017215,2]
[351204432,1738417838495,-150.0,0.00017217,2]
[351204433,1738417838505,-150.0,0.00017218,2]
[351204434,1738417838515,-866.07620021,0.0001722,2]
[351204435,1738417838525,-543.2560532,0.0001722,2]
[351204436,1738417838535,-150.0,0.00017221,2]
[351204437,1738417838545,-150.0,0.00017223,2]
[351204438,1738417838555,-150.0,0.00017223,2]
[351204439,1738417838564,-150.0,0.00017229,2]
[351204440,1738417838574,-150.0,0.0001723,2]
[351204441,1738417838583,-150.0,0.00017231,2]
[351204442,1738417838592,-1000.0,0.00017237,2]
[351204443,1738417838604,-866.07620021,0.00017243,2]
[351204444,1738417838614,-543.2560532,0.00017243,2]
[351204445,1738417838623,-150.0,0.0001725,2]
[351204446,1738417838633,-150.0,0.00017251,2]
[351204447,1738417838643,-150.0,0.00017258,2]
[351204448,1738417838656,-1746.918,0.0001726,2]
[351204449,1738417838665,-1000.0,0.0001726,7]
[351204450,1738417838674,-150.0,0.00017265,2]
[351204451,1738417838684,-866.07620021,0.00017265,2]
[351204452,1738417838694,-543.2560532,0.00017265,2]
[351204453,1738417838703,-150.0,0.00017267,2]
[351204454,1738417838713,-150.0,0.00017269,2]
[351204455,1738417838723,-150.0,0.00017272,2]
[351204456,1738417838732,-150.0,0.00017276,2]
[351204457,1738417838743,-866.07620021,0.00017288,2]
[351204458,1738417838752,-543.2560532,0.00017288,2]
[351204459,1738417838762,-250.12295756,0.0001729,2]
[351204461,1738417838771,-150.0,0.00017295,2]
[351204463,1738417838780,-150.0,0.00017296,2]
[351204464,1738417838789,-1165.1,0.00017297,2]
[351204465,1738417838799,-588.01,0.00017297,2]
[351204466,1738417838808,-530.86,0.00017297,2]
[351204467,1738417838818,-952.35,0.00017297,2]
[351204468,1738417838827,-500.0,0.00017297,2]
[351204469,1738417838837,-830.32,0.00017297,2]
[351204470,1738417838847,-500.0,0.00017297,2]
[351204471,1738417838857,-500.0,0.00017297,2]
[351204472,1738417838866,-571.47,0.00017297,2]
[351204473,1738417839083,-971.67,0.00017297,2]
[351204474,1738417839094,-500.0,0.00017297,2]
[351204475,1738417839104,-899.73,0.00017297,2]
[351204476,1738417839113,-500.0,0.00017297,2]
[351204477,1738417839124,-612.79,0.00017297,2]
[351204478,1738417839134,-500.0,0.00017297,2]
[351204479,1738417839145,-798.95,0.00017297,2]
[351204480,1738417839154,-586.7,0.00017297,2]
[351204481,1738417839164,-1540.5,0.00017297,2]
[351204482,1738417839174,-500.0,0.00017297,2]
[351204483,1738417839183,-1520.82,0.00017297,2]
[351204484,1738417839193,-500.0,0.00017297,2]
[351204485,1738417839202,-993.43,0.00017297,2]
[351204486,1738417839212,-1018.8,0.00017297,2]
[351204487,1738417839221,-1024.55,0.00017297,2]
[351204488,1738417839231,-690.12,0.00017297,2]
[351204489,1738417839240,-500.0,0.00017297,2]
[351204490,1738417839250,-500.0,0.00017297,2]
[351204491,1738417839259,-500.0,0.00017297,2]
[351204492,1738417839268,-576.88,0.00017297,2]
[351204493,1738417839278,-500.0,0.00017297,2]
[351204494,1738417839287,-500.0,0.00017297,2]
[351204495,1738417839296,-2632.07479211,0.00017297,2]
[351204496,1738417839309,-55083.02988828,0.00017297,2]
[351204497,1738417839344,-2025.44595638,0.00017297,2]
[351204498,1738417839355,-618.94923436,0.00017297,2]
[351204499,1738417841109,-1384.57543003,0.00017297,2]
[351204519,1738417843301,-500.0,0.00017297,2]
[351204520,1738417843311,-8340.5952438,0.00017297,2]
[351204521,1738417843472,-150862.1194663,0.00017297,2]
[351204547,1738417846143,-509.98,0.00017297,2]
[351204548,1738417846153,-304.22083999,0.00017297,2]
[351204549,1738417846184,-88.70382206,0.00017297,2]
[351204550,1738417846328,-2646.89815679,0.00017297,2]
[351204552,1738418140470,205.6,0.00010137,2]
[351204579,1738418995599,150.47,0.00010137,2]
[351204592,1738419032527,-550.0,0.00013,2]
[351204593,1738419032536,-473.33633179,0.00014265,2]
[351204594,1738419036636,-115.93366821,0.00014265,2]
[351204595,1738419036645,-150.0,0.00014296,2]
[351204596,1738419036655,-150.0,0.000143,2]
[351204597,1738419036663,-150.0,0.000143,2]
[351204598,1738419036672,-150.0,0.000143,2]
[351204599,1738419036681,-150.0,0.000143,2]
[351204600,1738419036691,-150.0,0.000143,2]
[351204601,1738419036700,-600.0,0.00015,2]
[351204602,1738419036709,-35.14634228,0.00015774,2]
[351204611,1738419038163,-121.64365772,0.00015774,2]
[351204612,1738419038172,-1000.0,0.0001585,2]
[351204613,1738419038181,-1500.0,0.00015888,2]
[351204614,1738419038190,-232.23,0.00015973,2]
[351204615,1738419038199,-207.46,0.00016148,2]
[351204616,1738419038209,-500.0,0.0001617,2]
[351204617,1738419038219,-2112.92,0.00016174,2]
[351204618,1738419038229,-589.27,0.00016529,2]
[351204619,1738419038238,-153.0,0.00016576,2]
[351204620,1738419038247,-2633.0,0.000166,2]
[351204621,1738419038256,-190.32,0.00016658,30]
[351204622,1738419038265,-1000.0,0.00016712,7]
[351204623,1738419038275,-205.6,0.00016813,2]
[351204624,1738419038284,-150.0,0.00016851,2]
[351204625,1738419038293,-637.0,0.00016851,2]
[351204626,1738419038302,-5000.0,0.000169,2]
[351204627,1738419038311,-433.03810015,0.000169,2]
[351204628,1738419038320,-1004.68535997,0.000169,2]
[351204629,1738419038329,-588.49523706,0.000169,2]
[351204630,1738419038339,-166.66666667,0.00016904,2]
[351204631,1738419038348,-900.0,0.00016922,2]
[351204632,1738419038359,-588.49523691,0.00016934,2]
[351204633,1738419038370,-433.0381001,0.00016956,2]
[351204634,1738419038380,-1004.68535996,0.00016956,2]
[351204635,1738419038389,-588.49523691,0.00016969,2]
[351204636,1738419038399,-1000.0,0.00016986,7]
[351204637,1738419038407,-166.66666667,0.00016986,2]
[351204638,1738419038417,-500.0,0.00016998,2]
[351204639,1738419038426,-500.0,0.00016998,2]
[351204640,1738419038437,-500.0,0.00016998,2]
[351204641,1738419038446,-500.0,0.00016998,2]
[351204642,1738419038455,-72822.44637854,0.00016999,2]
[351204643,1738419038485,-830.8267603,0.00016999,2]
[351204644,1738419038507,-5014.18504832,0.00016999,2]
[351204650,1738419040330,-1606.3873552,0.00016999,2]
[351204651,1738419040622,-666.0004449,0.00016999,2]
[351204652,1738419040651,-5615.95815294,0.00016999,2]
[351204673,1738419043378,-500.0,0.00016998,2]
[351204674,1738419043387,-162575.83074889,0.00016999,2]
[351204675,1738419043527,-4940.87561093,0.00016999,2]
[351204676,1738419043539,-5108.103,0.00016999,2]
[351204693,1738419046447,-1494.35,0.00016999,2]
[351204694,1738419126315,1160.101626,0.00023,120]
[351204696,1738419862563,155.95,0.00010137,2]
[351204697,1738419893137,1032.26092251,0.00023,120]
[351204726,1738420051228,222.0,0.00023,120]
[351204758,1738420125634,500.0,0.00023,120]
[351204759,1738420126343,198.11517544,0.00010136,2]
[351204771,1738420232462,-416.28267364,0.00013526,2]
[351204772,1738420232549,-201.45732636,0.00013526,2]
[351204773,1738420232558,-150.0,0.00014525,2]
[351204774,1738420232568,-150.0,0.00015205,2]
[351204775,1738420232578,-150.0,0.00015481,2]
[351204776,1738420232587,-28.10266849,0.00015481,2]
[351204777,1738420232598,-121.89733151,0.00015481,2]
[351204778,1738420232607,-160.50209789,0.0001561,2]
[351204779,1738420232616,-300.0,0.00015656,2]
[351204780,1738420232626,-4497.75440819,0.00015657,2]
[351204781,1738420232638,-5734.24559181,0.00015657,2]
[351204782,1738420232648,-150.0,0.0001571,2]
[351204783,1738420232658,-150.0,0.0001571,2]
[351204784,1738420232668,-617.74,0.0001579,2]
[351204785,1738420232679,-171.13,0.00015834,2]
[351204786,1738420232688,-500.0,0.00015838,2]
[351204787,1738420232698,-1000.0,0.00015847,2]
[351204788,1738420232707,-540.97,0.00015848,2]
[351204789,1738420232716,-24292.8232638,0.00015902,2]
[351204790,1738420232727,-233.32,0.00015902,2]
[351204791,1738420232736,-1034.90200645,0.000162,2]
[351204792,1738420232745,-166.74863838,0.0001629,2]
[351204793,1738420232755,-550.0,0.00016299,2]
[351204794,1738420232764,-67954.01093825,0.000163,2]
[351204795,1738420232773,-52440.7032071,0.000163,2]
[351204796,1738420232784,-50435.83118553,0.000163,2]
[351204797,1738420236784,-500.0,0.00016299,2]
[351204798,1738420236794,-175.32638408,0.00016299,2]
[351204799,1738420236804,-298.44641571,0.00016299,2]
[351204800,1738420236816,-590.37235554,0.00016299,2]
[351204801,1738420237037,-188.98477904,0.00016299,2]
[351204802,1738420237047,-470.52160095,0.00016299,2]
[351204803,1738420237062,-445.61213266,0.00016299,2]
[351204806,1738420237321,-161.66981668,0.00016299,2]
[351204807,1738420237333,-110.00435054,0.00016299,2]
[351204808,1738420237413,-389.99564946,0.00016299,2]
[351204809,1738420237423,-1077.80355029,0.00016299,2]
[351204810,1738420237433,-312.85362789,0.00016299,2]
[351204811,1738420237442,-626.19555617,0.00016299,2]
[351204812,1738420237454,-451.60799412,0.00016299,2]
[351204813,1738420237463,-1077.80355029,0.00016299,2]
[351204814,1738420237473,-201.76207543,0.00016299,2]
[351204815,1738420237485,-613.34962567,0.00016299,2]
[351204816,1738420237510,-262.69184919,0.00016299,2]
[351204817,1738420237520,-80.41815081,0.00016299,2]
[351204818,1738420237532,-353.35056595,0.00016299,2]
[351204819,1738420237543,-644.03483353,0.00016299,2]
[351204820,1738420237553,-1077.80355029,0.00016299,2]
[351204821,1738420237563,-1077.80355029,0.00016299,2]
[351204822,1738420237572,-1077.80355029,0.00016299,2]
[351204823,1738420237582,-1077.80355029,0.00016299,2]
[351204824,1738420237592,-1077.80355029,0.00016299,2]
[351204825,1738420237602,-1077.80355029,0.00016299,2]
[351204826,1738420237612,-1077.80355029,0.00016299,2]
[351204827,1738420237621,-1077.80355029,0.00016299,2]
[351204828,1738420237631,-1077.80355029,0.00016299,2]
[351204829,1738420237641,-1077.80355029,0.00016299,2]
[351204830,1738420237650,-1077.80355029,0.00016299,2]
[351204831,1738420237660,-1077.80355029,0.00016299,2]
[351204832,1738420237670,-1077.80355029,0.00016299,2]
[351204833,1738420237680,-1077.80355029,0.00016299,2]
[351204834,1738420237690,-1077.80355029,0.00016299,2]
[351204835,1738420237702,-1077.80355029,0.00016299,2]
[351204836,1738420237712,-1077.80355029,0.00016299,2]
[351204837,1738420237721,-1077.80355029,0.00016299,2]
[351204838,1738420237731,-1077.80355029,0.00016299,2]
[351204839,1738420237743,-1077.80355029,0.00016299,2]
[351204840,1738420237752,-1077.80355029,0.00016299,2]
[351204841,1738420237763,-1044.90268241,0.00016299,2]
[351204842,1738420237781,-32.90086788,0.00016299,2]
[351204843,1738420237791,-1077.80355029,0.00016299,2]
[351204844,1738420237800,-1077.80355029,0.00016299,2]
[351204845,1738420237809,-1077.80355029,0.00016299,2]
[351204846,1738420237819,-336.58848121,0.00016299,2]
[351204847,1738420237832,-741.21506908,0.00016299,2]
[351204848,1738420237842,-1077.80355029,0.00016299,2]
[351204850,1738420237851,-1077.80355029,0.00016299,2]
[351204852,1738420237860,-248.67783034,0.00016299,2]
[351204855,1738420237872,-627.2884743,0.00016299,2]
[351204865,1738420239575,-201.83724565,0.00016299,2]
[351204866,1738420239586,-113.18094618,0.00016299,2]
[351204867,1738420239598,-403.26653249,0.00016299,2]
[351204868,1738420239609,-561.35607162,0.00016299,2]
[351204869,1738420239620,-1077.80355029,0.00016299,2]
[351204870,1738420239629,-1077.80355029,0.00016299,2]
[351204871,1738420239639,-1077.80355029,0.00016299,2]
[351204872,1738420239648,-1077.80355029,0.00016299,2]
[351204873,1738420239658,-634.20478491,0.00016299,2]
[351204874,1738420239670,-443.59876538,0.00016299,2]
[351204875,1738420239679,-1077.80355029,0.00016299,2]